Workbook

Sheet ВИС2016
E1: ПРАЙС-ЛИСТ REHAU ВИС EA 2016
A2: НДС | B2: 1.18
E3: ( с заменами от 10.05.2016 )
E5: 0 | G5: Основная скидка / Grundrabatt:
E7: 0 | G7: Скидка за оснащение склада или объектная скидка / Lagererstausstattungsrabatt bzw.Objektrabatt::
E9: 0 | G9: Скидка за предоплату / Skonto:
E11: 0 | G11: Надбавка / Logistikkostenaufschlag:
A13: N = Новый артикул V = Изменен вариант P = изменение цены D = Выводится из программы поставок
B14: Программа | C14: Складская программа | D14: Прежний материал | E14: Актуальный материал | F14: Кол-во | G14: Наименование | H14: Ед-ца пост. | I14: Ед. изм. | J14: Цена брутто ЕВРО без НДС | K14: Цена брутто ЕВРО с НДС | L14: Сумма брутто ЕВРО с НДС | M14: Цена нетто ЕВРО без НДС | N14: Сумма нетто ЕВРО без НДС | O14: Цена нетто ЕВРО с НДС | P14: Сумма нетто ЕВРО с НДС
B16: RAUTITAN | G16: 1.1.1. Трубы и комплектующие на водоснабжение и отопление
B17: RAUTITAN | C17: x | E17: 11301211100 | G17: Универсальн.труба RAUTITAN stabil 16,2х2,6 мм, бухта 100 м | H17: 100 | I17: м | J17: 2.45 | K17: =J17*$B$2 -> 2.891 | L17: =K17*F17 -> 0 | M17: =J17*(1-$E$5-$E$7)*(1-$E$9)*(1+$E$11) -> 2.45 | N17: =M17*F17 -> 0 | O17: =ROUND((M17*$B$2),2) -> 2.89 | P17: =O17*F17 -> 0
B18: RAUTITAN | C18: x | E18: 11301311100 | G18: Универсальн.труба RAUTITAN stabil 20х2,9 мм, бухта 100 м | H18: 100 | I18: м | J18: 3.49 | K18: =J18*$B$2 -> 4.1182 | L18: =K18*F18 -> 0 | M18: =J18*(1-$E$5-$E$7)*(1-$E$9)*(1+$E$11) -> 3.49 | N18: =M18*F18 -> 0 | O18: =ROUND((M18*$B$2),2) -> 4.12 | P18: =O18*F18 -> 0
B19: RAUTITAN | C19: x | E19: 11301411050 | G19: Универсальн.труба RAUTITAN stabil 25х3,7 мм, бухта 50 м | H19: 50 | I19: м | J19: 6.29 | K19: =J19*$B$2 -> 7.4222 | L19: =K19*F19 -> 0 | M19: =J19*(1-$E$5-$E$7)*(1-$E$9)*(1+$E$11) -> 6.29 | N19: =M19*F19 -> 0 | O19: =ROUND((M19*$B$2),2) -> 7.42 | P19: =O19*F19 -> 0
B20: RAUTITAN
B21: RAUTITAN | E21: 11300711005 | G21: Универсальн.труба RAUTITAN stabil 16,2х2,6 мм, прям.отрезки 5м | H21: 100 | I21: м | J21: 2.76 | K21: =J21*$B$2 -> 3.2568 | L21: =K21*F21 -> 0 | M21: =J21*(1-$E$5-$E$7)*(1-$E$9)*(1+$E$11) -> 2.76 | N21: =M21*F21 -> 0 | O21: =ROUND((M21*$B$2),2) -> 3.26 | P21: =O21*F21 -> 0
B22: RAUTITAN | E22: 11300811005 | G22: Универсальн.труба RAUTITAN stabil 20х2,9 мм, прям.отрезки 5м | H22: 50 | I22: м | J22: 3.8 | K22: =J22*$B$2 -> 4.484 | L22: =K22*F22 -> 0 | M22: =J22*(1-$E$5-$E$7)*(1-$E$9)*(1+$E$11) -> 3.8 | N22: =M22*F22 -> 0 | O22: =ROUND((M22*$B$2),2) -> 4.48 | P22: =O22*F22 -> 0
B23: RAUTITAN | E23: 11300911005 | G23: Универсальн.труба RAUTITAN stabil 25х3,7 мм, прям.отрезки 5м | H23: 40 | I23: м | J23: 6.73 | K23: =J23*$B$2 -> 7.9414 | L23: =K23*F23 -> 0 | M23: =J23*(1-$E$5-$E$7)*(1-$E$9)*(1+$E$11) -> 6.73 | N23: =M23*F23 -> 0 | O23: =ROUND((M23*$B$2),2) -> 7.94 | P23: =O23*F23 -> 0
B24: RAUTITAN | C24: x | E24: 11301011005 | G24: Универсальн.труба RAUTITAN stabil 32х4,7 мм, прям.отрезки 5м | H24: 25 | I24: м | J24: 7.91 | K24: =J24*$B$2 -> 9.3338 | L24: =K24*F24 -> 0 | M24: =J24*(1-$E$5-$E$7)*(1-$E$9)*(1+$E$11) -> 7.91 | N24: =M24*F24 -> 0 | O24: =ROUND((M24*$B$2),2) -> 9.33 | P24: =O24*F24 -> 0
B25: RAUTITAN | C25: x | E25: 11301111005 | G25: Универсальн.труба RAUTITAN stabil 40х6,0 мм, прям.отрезки 5м | H25: 15 | I25: м | J25: 19.67 | K25: =J25*$B$2 -> 23.2106 | L25: =K25*F25 -> 0 | M25: =J25*(1-$E$5-$E$7)*(1-$E$9)*(1+$E$11) -> 19.67 | N25: =M25*F25 -> 0 | O25: =ROUND((M25*$B$2),2) -> 23.21 | P25: =O25*F25 -> 0
B26: RAUTITAN
A27: N | B27: RAUTITAN | C27: под заказ | E27: 11308301025 | G27: Унив.труба RAUTITAN stabil 16,2х2,6, прямоуг. изол. 9 мм, бухта 25 м | H27: 25 | I27: м | J27: 5.45 | K27: =J27*$B$2 -> 6.431 | L27: =K27*F27 -> 0 | M27: =J27*(1-$E$5-$E$7)*(1-$E$9)*(1+$E$11) -> 5.45 | N27: =M27*F27 -> 0 | O27: =ROUND((M27*$B$2),2) -> 6.43 | P27: =O27*F27 -> 0
A28: N | B28: RAUTITAN | C28: под заказ | E28: 11308401025 | G28: Унив.труба RAUTITAN stabil 20х2,9, прямоуг. изол. 9 мм, бухта 25 м | H28: 25 | I28: м | J28: 6.89 | K28: =J28*$B$2 -> 8.1302 | L28: =K28*F28 -> 0 | M28: =J28*(1-$E$5-$E$7)*(1-$E$9)*(1+$E$11) -> 6.89 | N28: =M28*F28 -> 0 | O28: =ROUND((M28*$B$2),2) -> 8.13 | P28: =O28*F28 -> 0
A29: N | B29: RAUTITAN | C29: под заказ | E29: 11308501025 | G29: Унив.труба RAUTITAN stabil 16,2х2,6, прямоуг., изол.26 мм, бухта 25 м | H29: 25 | I29: м | J29: 8.08 | K29: =J29*$B$2 -> 9.5344 | L29: =K29*F29 -> 0 | M29: =J29*(1-$E$5-$E$7)*(1-$E$9)*(1+$E$11) -> 8.08 | N29: =M29*F29 -> 0 | O29: =ROUND((M29*$B$2),2) -> 9.53 | P29: =O29*F29 -> 0
A30: N | B30: RAUTITAN | C30: под заказ | E30: 11308601025 | G30: Унив.труба RAUTITAN stabil 20х2,9, прямоуг., изол. 26 мм, бухта 25 м | H30: 25 | I30: м | J30: 9.18 | K30: =J30*$B$2 -> 10.8324 | L30: =K30*F30 -> 0 | M30: =J30*(1-$E$5-$E$7)*(1-$E$9)*(1+$E$11) -> 9.18 | N30: =M30*F30 -> 0 | O30: =ROUND((M30*$B$2),2) -> 10.83 | P30: =O30*F30 -> 0
B31: RAUTITAN
B32: RAUTITAN | C32: под заказ | E32: 11302411050 | G32: Унив.труба RAUTITAN stabil 16,2х2,6, кругл., изол. 4 мм, бухта 50 м | H32: 50 | I32: м | J32: 3.71 | K32: =J32*$B$2 -> 4.3778 | L32: =K32*F32 -> 0 | M32: =J32*(1-$E$5-$E$7)*(1-$E$9)*(1+$E$11) -> 3.71 | N32: =M32*F32 -> 0 | O32: =ROUND((M32*$B$2),2) -> 4.38 | P32: =O32*F32 -> 0
B33: RAUTITAN | C33: под заказ | E33: 11302711050 | G33: Унив.труба RAUTITAN stabil 20х2,9, кругл., изол. 4 мм, бухта 50 м | H33: 50 | I33: м | J33: 5.03 | K33: 5.9354 | L33: 0 | M33: 5.03 | N33: 0 | O33: 5.94 | P33: 0
A34: N | B34: RAUTITAN | C34: под заказ | E34: 11314951025 | G34: Унив.труба RAUTITAN stabil 25x3,7, кругл., изол. 4 мм, бухта 25 м. | H34: 25 | I34: м | J34: 7.06 | K34: 8.3308 | L34: 0 | M34: 7.06 | N34: 0 | O34: 8.33 | P34: 0
B35: RAUTITAN | C35: под заказ | E35: 11302511050 | G35: Унив.труба RAUTITAN stabil 16,2х2,6, кругл., изол. 9 мм, бухта 50 м | H35: 50 | I35: м | J35: 4.25 | K35: 5.015 | L35: 0 | M35: 4.25 | N35: 0 | O35: 5.02 | P35: 0
B36: RAUTITAN | C36: под заказ | E36: 11302811050 | G36: Унив.труба RAUTITAN stabil 20х2,9, кругл., изол. 9 мм, бухта 50 м | H36: 50 | I36: м | J36: 5.63 | K36: 6.6434 | L36: 0 | M36: 5.63 | N36: 0 | O36: 6.64 | P36: 0
A37: N | B37: RAUTITAN | C37: под заказ | E37: 11314971025 | G37: Унив.труба RAUTITAN stabil 25x3,7, кругл., изол. 9 мм, бухта 25 м. | H37: 25 | I37: м | J37: 7.4 | K37: 8.732 | L37: 0 | M37: 7.4 | N37: 0 | O37: 8.73 | P37: 0
A38: N | B38: RAUTITAN | C38: под заказ | E38: 11314981025 | G38: Унив.труба RAUTITAN stabil 16x2,6, кругл., изол. 13 мм, бухта 25 м. | H38: 25 | I38: м | J38: 4.95 | K38: 5.841 | L38: 0 | M38: 4.95 | N38: 0 | O38: 5.84 | P38: 0
A39: N | B39: RAUTITAN | C39: под заказ | E39: 11314991025 | G39: Унив.труба RAUTITAN stabil 20x2,9, кругл., изол. 13 мм, бухта 25 м. | H39: 25 | I39: м | J39: 5.78 | K39: 6.8204 | L39: 0 | M39: 5.78 | N39: 0 | O39: 6.82 | P39: 0
A40: N | B40: RAUTITAN | C40: под заказ | E40: 11315051025 | G40: Унив.труба RAUTITAN stabil 25x3,7, кругл., изол. 13 мм, бухта 25 м. | H40: 25 | I40: м | J40: 7.88 | K40: 9.2984 | L40: 0 | M40: 7.88 | N40: 0 | O40: 9.3 | P40: 0
B41: RAUTITAN
B42: RAUTITAN | C42: под заказ | E42: 11304911050 | G42: Унив.труба RAUTITAN stаbil 16,2х2,6мм в гофротрубе, бухта 50м | H42: 50 | I42: м | J42: 3.17 | K42: =J42*$B$2 -> 3.7406 | L42: =K42*F42 -> 0 | M42: =J42*(1-$E$5-$E$7)*(1-$E$9)*(1+$E$11) -> 3.17 | N42: =M42*F42 -> 0 | O42: =ROUND((M42*$B$2),2) -> 3.74 | P42: =O42*F42 -> 0
B43: RAUTITAN | C43: под заказ | E43: 11305011050 | G43: Унив.труба RAUTITAN stabil 20х2,9мм в гофротрубе, бухта 50 м | H43: 50 | I43: м | J43: 4.33 | K43: =J43*$B$2 -> 5.1094 | L43: =K43*F43 -> 0 | M43: =J43*(1-$E$5-$E$7)*(1-$E$9)*(1+$E$11) -> 4.33 | N43: =M43*F43 -> 0 | O43: =ROUND((M43*$B$2),2) -> 5.11 | P43: =O43*F43 -> 0
B44: RAUTITAN
B45: RAUTITAN | C45: x | E45: 11303701100 | F45: 80 | G45: Унив.труба RAUTITAN flex 16x2,2, бухта 100м | H45: 100 | I45: м | J45: 1.8715 | K45: =J45*$B$2 -> 2.20837 | L45: =K45*F45 -> 176.6696 | M45: =J45*(1-$E$5-$E$7)*(1-$E$9)*(1+$E$11) -> 1.8715 | N45: =M45*F45 -> 149.72 | O45: =ROUND((M45*$B$2),2) -> 2.21 | P45: =O45*F45 -> 176.8
B46: RAUTITAN | C46: x | E46: 11303801100 | F46: 50 | G46: Унив.труба RAUTITAN flex 20x2,8, бухта 100м | H46: 100 | I46: м | J46: 2.603 | K46: 3.07154 | L46: 153.577 | M46: 2.603 | N46: 130.15 | O46: 3.07 | P46: 153.5
B47: RAUTITAN | C47: x | E47: 11303901050 | F47: 20 | G47: Унив.труба RAUTITAN flex 25x3,5, бухта 50м | H47: 50 | I47: м | J47: 3.952 | K47: 4.66336 | L47: 93.2672 | M47: 3.952 | N47: 79.04 | O47: 4.66 | P47: 93.2
B48: RAUTITAN | C48: x | E48: 11304001050 | F48: 50 | G48: Унив.труба RAUTITAN flex 32x4,4, бухта 50м | H48: 50 | I48: м | J48: 5.776 | K48: 6.81568 | L48: 340.784 | M48: 5.776 | N48: 288.8 | O48: 6.82 | P48: 341
B49: RAUTITAN | C49: x | E49: 11303701006 | G49: Унив.труба RAUTITAN flex 16x2,2, прям.отрезки 6м | H49: 60 | I49: м | J49: 2.166 | K49: 2.55588 | L49: 0 | M49: 2.166 | N49: 0 | O49: 2.56 | P49: 0
B50: RAUTITAN | C50: x | E50: 11303801006 | G50: Унив.труба RAUTITAN flex 20x2,8, прям.отрезки 6м | H50: 60 | I50: м | J50: 2.907 | K50: 3.43026 | L50: 0 | M50: 2.907 | N50: 0 | O50: 3.43 | P50: 0
B51: RAUTITAN | C51: x | E51: 11303901006 | G51: Унив.труба RAUTITAN flex 25x3,5, прям.отрезки 6м | H51: 30 | I51: м | J51: 4.237 | K51: 4.99966 | L51: 0 | M51: 4.237 | N51: 0 | O51: 5 | P51: 0
B52: RAUTITAN | C52: x | E52: 11304001006 | G52: Унив.труба RAUTITAN flex 32x4,4, прям.отрезки 6м | H52: 30 | I52: м | J52: 6.0705 | K52: 7.16319 | L52: 0 | M52: 6.0705 | N52: 0 | O52: 7.16 | P52: 0
B53: RAUTITAN | C53: x | E53: 11304101006 | F53: 40 | G53: Унив.труба RAUTITAN flex 40x5,5, прям.отрезки 6м | H53: 12 | I53: м | J53: 9.405 | K53: 11.0979 | L53: 443.916 | M53: 9.405 | N53: 376.2 | O53: 11.1 | P53: 444
B54: RAUTITAN | E54: 11304201006 | F54: 15 | G54: Унив.труба RAUTITAN flex 50x6,9, прям.отрезки 6м | H54: 6 | I54: м | J54: 12.3785 | K54: 14.60663 | L54: 219.09945 | M54: 12.3785 | N54: 185.6775 | O54: 14.61 | P54: 219.15
B55: RAUTITAN | E55: 11304301006 | F55: 40 | G55: Унив.труба RAUTITAN flex 63x8,6, прям.отрезки 6м | H55: 6 | I55: м | J55: 18.2685 | K55: 21.55683 | L55: 862.2732 | M55: 18.2685 | N55: 730.74 | O55: 21.56 | P55: 862.4
B56: RAUTITAN
A57: N | B57: RAUTITAN | C57: под заказ | E57: 11308701050 | G57: Унив.труба RAUTITAN flex 16х2,2, прямоуг., изол.9 мм, бухта 50м | H57: 50 | I57: м | J57: 4.7215 | K57: =J57*$B$2 -> 5.57137 | L57: =K57*F57 -> 0 | M57: =J57*(1-$E$5-$E$7)*(1-$E$9)*(1+$E$11) -> 4.7215 | N57: =M57*F57 -> 0 | O57: =ROUND((M57*$B$2),2) -> 5.57 | P57: =O57*F57 -> 0
A58: N | B58: RAUTITAN | C58: под заказ | E58: 11308801050 | G58: Унив.труба RAUTITAN flex 20х2,8, прямоуг., изол.9 мм, бухта 50м | H58: 50 | I58: м | J58: 5.567 | K58: =J58*$B$2 -> 6.56906 | L58: =K58*F58 -> 0 | M58: =J58*(1-$E$5-$E$7)*(1-$E$9)*(1+$E$11) -> 5.567 | N58: =M58*F58 -> 0 | O58: =ROUND((M58*$B$2),2) -> 6.57 | P58: =O58*F58 -> 0
A59: N | B59: RAUTITAN | C59: под заказ | E59: 11308901025 | G59: Унив.труба RAUTITAN flex 16х2,2, прямоуг., изол.26 мм, бухта 25м | H59: 25 | I59: м | J59: 6.707 | K59: =J59*$B$2 -> 7.91426 | L59: =K59*F59 -> 0 | M59: =J59*(1-$E$5-$E$7)*(1-$E$9)*(1+$E$11) -> 6.707 | N59: =M59*F59 -> 0 | O59: =ROUND((M59*$B$2),2) -> 7.91 | P59: =O59*F59 -> 0
A60: N | B60: RAUTITAN | C60: под заказ | E60: 11309001025 | G60: Унив.труба RAUTITAN flex 20х2,8, прямоуг., изол.26 мм, бухта 25м | H60: 25 | I60: м | J60: 7.8945 | K60: =J60*$B$2 -> 9.31551 | L60: =K60*F60 -> 0 | M60: =J60*(1-$E$5-$E$7)*(1-$E$9)*(1+$E$11) -> 7.8945 | N60: =M60*F60 -> 0 | O60: =ROUND((M60*$B$2),2) -> 9.32 | P60: =O60*F60 -> 0
B61: RAUTITAN
B62: RAUTITAN | C62: под заказ | E62: 11304601050 | G62: Унив.труба RAUTITAN flex 16х2,2, кругл., изол.4 мм, бухта 50м | H62: 50 | I62: м | J62: 3.059 | K62: =J62*$B$2 -> 3.60962 | L62: =K62*F62 -> 0 | M62: =J62*(1-$E$5-$E$7)*(1-$E$9)*(1+$E$11) -> 3.059 | N62: =M62*F62 -> 0 | O62: =ROUND((M62*$B$2),2) -> 3.61 | P62: =O62*F62 -> 0
B63: RAUTITAN | C63: под заказ | E63: 11304701050 | G63: Унив.труба RAUTITAN flex 20х2,8, кругл., изол.4 мм, бухта 50м | H63: 50 | I63: м | J63: 4.0565 | K63: 4.78667 | L63: 0 | M63: 4.0565 | N63: 0 | O63: 4.79 | P63: 0
A64: N | B64: RAUTITAN | C64: под заказ | E64: 11315071025 | G64: Унив.труба RAUTITAN flex 25x3,5, кругл., изол. 4 мм, бухта 25 м. | H64: 25 | I64: м | J64: 5.7 | K64: 6.726 | L64: 0 | M64: 5.7 | N64: 0 | O64: 6.73 | P64: 0
B65: RAUTITAN | C65: под заказ | E65: 11304801050 | G65: Унив.труба RAUTITAN flex 16 х2,2, кругл., изол.9 мм, бухта 50м | H65: 50 | I65: м | J65: 3.572 | K65: 4.21496 | L65: 0 | M65: 3.572 | N65: 0 | O65: 4.21 | P65: 0
B66: RAUTITAN | C66: под заказ | E66: 11304901050 | G66: Унив.труба RAUTITAN flex 20х2,8, кругл., изол.9 мм, бухта 50м | H66: 50 | I66: м | J66: 4.617 | K66: 5.44806 | L66: 0 | M66: 4.617 | N66: 0 | O66: 5.45 | P66: 0
A67: N | B67: RAUTITAN | C67: под заказ | E67: 11315081025 | G67: Унив.труба RAUTITAN flex 25x3,5, кругл., изол. 9 мм, бухта 25 м. | H67: 25 | I67: м | J67: 6.023 | K67: 7.10714 | L67: 0 | M67: 6.023 | N67: 0 | O67: 7.11 | P67: 0
A68: N | B68: RAUTITAN | C68: под заказ | E68: 11315091025 | G68: Унив.труба RAUTITAN flex 16x2,2, кругл., изол. 13 мм, бухта 25 м. | H68: 25 | I68: м | J68: 3.876 | K68: 4.57368 | L68: 0 | M68: 3.876 | N68: 0 | O68: 4.57 | P68: 0
A69: N | B69: RAUTITAN | C69: под заказ | E69: 11315151025 | G69: Унив.труба RAUTITAN flex 20x2,8, кругл., изол. 13 мм, бухта 25 м. | H69: 25 | I69: м | J69: 4.6835 | K69: 5.52653 | L69: 0 | M69: 4.6835 | N69: 0 | O69: 5.53 | P69: 0
A70: N | B70: RAUTITAN | C70: под заказ | E70: 11315171025 | G70: Унив.труба RAUTITAN flex 25x3,5, кругл., изол. 13 мм, бухта 25 м. | H70: 25 | I70: м | J70: 6.479 | K70: 7.64522 | L70: 0 | M70: 6.479 | N70: 0 | O70: 7.65 | P70: 0
B71: RAUTITAN
B72: RAUTITAN | C72: под заказ | E72: 11304401050 | G72: Унив.труба RAUTITAN flex 16х2,2 в гофротрубе, бухта 50м | H72: 50 | I72: м | J72: 2.565 | K72: =J72*$B$2 -> 3.0267 | L72: =K72*F72 -> 0 | M72: =J72*(1-$E$5-$E$7)*(1-$E$9)*(1+$E$11) -> 2.565 | N72: =M72*F72 -> 0 | O72: =ROUND((M72*$B$2),2) -> 3.03 | P72: =O72*F72 -> 0
B73: RAUTITAN | C73: под заказ | E73: 11304501050 | G73: Унив.труба RAUTITAN flex 20х2,8 в гофротрубе, бухта 50м | H73: 50 | I73: м | J73: 3.3915 | K73: =J73*$B$2 -> 4.00197 | L73: =K73*F73 -> 0 | M73: =J73*(1-$E$5-$E$7)*(1-$E$9)*(1+$E$11) -> 3.3915 | N73: =M73*F73 -> 0 | O73: =ROUND((M73*$B$2),2) -> 4 | P73: =O73*F73 -> 0
B74: RAUTITAN
B75: RAUTITAN | E75: 11370101100 | G75: Труба водопров. RAUTITAN his 16x2,2, бухта 100 м | H75: 100 | I75: м | J75: 1.395 | K75: =J75*$B$2 -> 1.6461 | L75: =K75*F75 -> 0 | M75: =J75*(1-$E$5-$E$7)*(1-$E$9)*(1+$E$11) -> 1.395 | N75: =M75*F75 -> 0 | O75: =ROUND((M75*$B$2),2) -> 1.65 | P75: =O75*F75 -> 0
B76: RAUTITAN | E76: 11370101006 | G76: Труба водопров. RAUTITAN his 16x2,2, прямые отрезки 6 м | H76: 60 | I76: м | J76: 1.62 | K76: 1.9116 | L76: 0 | M76: 1.62 | N76: 0 | O76: 1.91 | P76: 0
B77: RAUTITAN | E77: 11370201100 | G77: Труба водопров. RAUTITAN his 20x2,8, бухта 100 м | H77: 100 | I77: м | J77: 1.944 | K77: 2.29392 | L77: 0 | M77: 1.944 | N77: 0 | O77: 2.29 | P77: 0
B78: RAUTITAN | E78: 11370201006 | G78: Труба водопров. RAUTITAN his 20x2,8, прямые отрезки 6 м | H78: 60 | I78: м | J78: 2.097 | K78: 2.47446 | L78: 0 | M78: 2.097 | N78: 0 | O78: 2.47 | P78: 0
B79: RAUTITAN | E79: 11370301050 | G79: Труба водопров. RAUTITAN his 25x3,5, бухта 50 м | H79: 50 | I79: м | J79: 2.97 | K79: 3.5046 | L79: 0 | M79: 2.97 | N79: 0 | O79: 3.5 | P79: 0
B80: RAUTITAN | E80: 11370301006 | G80: Труба водопров. RAUTITAN his 25x3,5, прямые отрезки 6 м | H80: 30 | I80: м | J80: 3.195 | K80: 3.7701 | L80: 0 | M80: 3.195 | N80: 0 | O80: 3.77 | P80: 0
B81: RAUTITAN | E81: 11370401050 | G81: Труба водопров. RAUTITAN his 32x4,4, бухта 50 м | H81: 50 | I81: м | J81: 5.454 | K81: 6.43572 | L81: 0 | M81: 5.454 | N81: 0 | O81: 6.44 | P81: 0
B82: RAUTITAN | E82: 11370401006 | G82: Труба водопров. RAUTITAN his 32x4,4, прямые отрезки 6 м | H82: 30 | I82: м | J82: 5.751 | K82: 6.78618 | L82: 0 | M82: 5.751 | N82: 0 | O82: 6.79 | P82: 0
B83: RAUTITAN | E83: 11383201006 | G83: Труба водопров. RAUTITAN his 40x5,5, прямые отрезки 6 м | H83: 12 | I83: м | J83: 8.91 | K83: 10.5138 | L83: 0 | M83: 8.91 | N83: 0 | O83: 10.51 | P83: 0
B84: RAUTITAN | E84: 11383301006 | G84: Труба водопров. RAUTITAN his 50x6,9, прямые отрезки 6 м | H84: 6 | I84: м | J84: 11.727 | K84: 13.83786 | L84: 0 | M84: 11.727 | N84: 0 | O84: 13.84 | P84: 0
B85: RAUTITAN | E85: 11383401006 | G85: Труба водопров. RAUTITAN his 63x8,6, прямые отрезки 6 м | H85: 6 | I85: м | J85: 17.307 | K85: 20.42226 | L85: 0 | M85: 17.307 | N85: 0 | O85: 20.42 | P85: 0
B86: RAUTITAN
B87: RAUTITAN | C87: x | E87: 11360421120 | G87: Отоп. труба RAUTITAN pink 16х2,2 мм, бухта 120 м | H87: 120 | I87: м | J87: 1.386 | K87: =J87*$B$2 -> 1.63548 | L87: =K87*F87 -> 0 | M87: =J87*(1-$E$5-$E$7)*(1-$E$9)*(1+$E$11) -> 1.386 | N87: =M87*F87 -> 0 | O87: =ROUND((M87*$B$2),2) -> 1.64 | P87: =O87*F87 -> 0
B88: RAUTITAN | E88: 11360421006 | G88: Отоп. труба RAUTITAN pink 16х2,2 мм, прямые отрезки 6 м | H88: 60 | I88: м | J88: 1.575 | K88: 1.8585 | L88: 0 | M88: 1.575 | N88: 0 | O88: 1.86 | P88: 0
B89: RAUTITAN | C89: x | E89: 11360521120 | G89: Отоп. труба RAUTITAN pink 20х2,8 мм, бухта 120 м | H89: 120 | I89: м | J89: 1.917 | K89: 2.26206 | L89: 0 | M89: 1.917 | N89: 0 | O89: 2.26 | P89: 0
B90: RAUTITAN | E90: 11360521006 | G90: Отоп. труба RAUTITAN pink 20х2,8 мм, прямые отрезки 6 м | H90: 60 | I90: м | J90: 2.061 | K90: 2.43198 | L90: 0 | M90: 2.061 | N90: 0 | O90: 2.43 | P90: 0
B91: RAUTITAN | C91: x | E91: 11360621050 | G91: Отоп. труба RAUTITAN pink 25х3,5 мм, бухта 50 м | H91: 50 | I91: м | J91: 2.925 | K91: 3.4515 | L91: 0 | M91: 2.925 | N91: 0 | O91: 3.45 | P91: 0
B92: RAUTITAN | E92: 11360621006 | G92: Отоп. труба RAUTITAN pink 25х3,5 мм, прямые отрезки 6 м | H92: 30 | I92: м | J92: 3.177 | K92: 3.74886 | L92: 0 | M92: 3.177 | N92: 0 | O92: 3.75 | P92: 0
B93: RAUTITAN | C93: x | E93: 11360721050 | G93: Отоп. труба RAUTITAN pink 32х4,4 мм, бухта 50 м | H93: 50 | I93: м | J93: 4.68 | K93: 5.5224 | L93: 0 | M93: 4.68 | N93: 0 | O93: 5.52 | P93: 0
B94: RAUTITAN | E94: 11360721006 | G94: Отоп. труба RAUTITAN pink 32х4,4 мм, прямые отрезки 6 м | H94: 30 | I94: м | J94: 5.067 | K94: 5.97906 | L94: 0 | M94: 5.067 | N94: 0 | O94: 5.98 | P94: 0
B95: RAUTITAN | C95: x | E95: 11360821006 | G95: Отоп. труба RAUTITAN pink 40х5,5 мм, прямые отрезки 6 м | H95: 12 | I95: м | J95: 7.866 | K95: 9.28188 | L95: 0 | M95: 7.866 | N95: 0 | O95: 9.28 | P95: 0
B96: RAUTITAN | E96: 11360921006 | G96: Отоп. труба RAUTITAN pink 50х6,9 мм, прямые отрезки 6 м | H96: 6 | I96: м | J96: 10.305 | K96: 12.1599 | L96: 0 | M96: 10.305 | N96: 0 | O96: 12.16 | P96: 0
B97: RAUTITAN | E97: 11361021006 | G97: Отоп. труба RAUTITAN pink 63х8,7 мм, прямые отрезки 6 м | H97: 6 | I97: м | J97: 14.895 | K97: 17.5761 | L97: 0 | M97: 14.895 | N97: 0 | O97: 17.58 | P97: 0
B98: RAUTITAN
B99: RAUTITAN | E99: 11371401050 | G99: Гофротруба защитн.для ПЭ-трубы 16/17, бухта 50м | H99: 50 | I99: м | J99: 0.74 | K99: =J99*$B$2 -> 0.8732 | L99: =K99*F99 -> 0 | M99: =J99*(1-$E$5-$E$7)*(1-$E$9)*(1+$E$11) -> 0.74 | N99: =M99*F99 -> 0 | O99: =ROUND((M99*$B$2),2) -> 0.87 | P99: =O99*F99 -> 0
B100: RAUTITAN | E100: 11371501050 | G100: Гофротруба защитн.для ПЭ-трубы 20, бухта 50м | H100: 50 | I100: м | J100: 0.83 | K100: =J100*$B$2 -> 0.9794 | L100: =K100*F100 -> 0 | M100: =J100*(1-$E$5-$E$7)*(1-$E$9)*(1+$E$11) -> 0.83 | N100: =M100*F100 -> 0 | O100: =ROUND((M100*$B$2),2) -> 0.98 | P100: =O100*F100 -> 0
B101: RAUTITAN | E101: 11371601025 | G101: Гофротруба защитн.для ПЭ-трубы 25, бухта 25м | H101: 25 | I101: м | J101: 1.09 | K101: =J101*$B$2 -> 1.2862 | L101: =K101*F101 -> 0 | M101: =J101*(1-$E$5-$E$7)*(1-$E$9)*(1+$E$11) -> 1.09 | N101: =M101*F101 -> 0 | O101: =ROUND((M101*$B$2),2) -> 1.29 | P101: =O101*F101 -> 0
B102: RAUTITAN | E102: 11371701025 | G102: Гофротруба защитн.для ПЭ-трубы 32, бухта 25м | H102: 25 | I102: м | J102: 1.51 | K102: =J102*$B$2 -> 1.7818 | L102: =K102*F102 -> 0 | M102: =J102*(1-$E$5-$E$7)*(1-$E$9)*(1+$E$11) -> 1.51 | N102: =M102*F102 -> 0 | O102: =ROUND((M102*$B$2),2) -> 1.78 | P102: =O102*F102 -> 0
B103: RAUTITAN
B104: RAUTITAN | C104: x | E104: 11380331001 | F104: 80 | G104: Фиксирующий желоб для ПЭ-трубы 16/17 | H104: 30 | I104: м | J104: 1.34 | K104: =J104*$B$2 -> 1.5812 | L104: =K104*F104 -> 126.496 | M104: =J104*(1-$E$5-$E$7)*(1-$E$9)*(1+$E$11) -> 1.34 | N104: =M104*F104 -> 107.2 | O104: =ROUND((M104*$B$2),2) -> 1.58 | P104: =O104*F104 -> 126.4
B105: RAUTITAN | C105: x | E105: 11380431001 | F105: 50 | G105: Фиксирующий желоб для ПЭ-трубы 20 | H105: 30 | I105: м | J105: 1.46 | K105: 1.7228 | L105: 86.14 | M105: 1.46 | N105: 73 | O105: 1.72 | P105: 86
B106: RAUTITAN | C106: x | E106: 11380531001 | F106: 20 | G106: Фиксирующий желоб для ПЭ-трубы 25 | H106: 30 | I106: м | J106: 1.92 | K106: 2.2656 | L106: 45.312 | M106: 1.92 | N106: 38.4 | O106: 2.27 | P106: 45.4
B107: RAUTITAN | C107: x | E107: 11380631001 | F107: 50 | G107: Фиксирующий желоб для ПЭ-трубы 32 | H107: 30 | I107: м | J107: 2.37 | K107: 2.7966 | L107: 139.83 | M107: 2.37 | N107: 118.5 | O107: 2.8 | P107: 140
B108: RAUTITAN | C108: x | E108: 11380731001 | F108: 40 | G108: Фиксирующий желоб для ПЭ-трубы 40 | H108: 15 | I108: м | J108: 3.61 | K108: 4.2598 | L108: 170.392 | M108: 3.61 | N108: 144.4 | O108: 4.26 | P108: 170.4
B109: RAUTITAN | E109: 11380831001 | F109: 15 | G109: Фиксирующий желоб для ПЭ-трубы 50 | H109: 15 | I109: м | J109: 4.48 | K109: 5.2864 | L109: 79.296 | M109: 4.48 | N109: 67.2 | O109: 5.29 | P109: 79.35
B110: RAUTITAN | E110: 11380931001 | F110: 40 | G110: Фиксирующий желоб для ПЭ-трубы 63 | H110: 15 | I110: м | J110: 5.38 | K110: 6.3484 | L110: 253.936 | M110: 5.38 | N110: 215.2 | O110: 6.35 | P110: 254
B111: RAUTITAN
B112: RAUTITAN | E112: 12414431001 | G112: Противопожарная манжета 16/17 для РЕХ | H112: 1 | I112: шт | J112: 48.5 | K112: =J112*$B$2 -> 57.23 | L112: =K112*F112 -> 0 | M112: =J112*(1-$E$5-$E$7)*(1-$E$9)*(1+$E$11) -> 48.5 | N112: =M112*F112 -> 0 | O112: =ROUND((M112*$B$2),2) -> 57.23 | P112: =O112*F112 -> 0
B113: RAUTITAN | E113: 12414531001 | G113: Противопожарная манжета 20 для РЕХ | H113: 1 | I113: шт | J113: 51.39 | K113: 60.6402 | L113: 0 | M113: 51.39 | N113: 0 | O113: 60.64 | P113: 0
B114: RAUTITAN | E114: 12414631001 | G114: Противопожарная манжета 25 для РЕХ | H114: 1 | I114: шт | J114: 54.29 | K114: 64.0622 | L114: 0 | M114: 54.29 | N114: 0 | O114: 64.06 | P114: 0
B115: RAUTITAN | E115: 12414731001 | G115: Противопожарная манжета 32 для РЕХ | H115: 1 | I115: шт | J115: 58.84 | K115: 69.4312 | L115: 0 | M115: 58.84 | N115: 0 | O115: 69.43 | P115: 0
B116: RAUTITAN | E116: 12414831001 | G116: Противопожарная манжета 40 для РЕХ | H116: 1 | I116: шт | J116: 65.13 | K116: 76.8534 | L116: 0 | M116: 65.13 | N116: 0 | O116: 76.85 | P116: 0
B117: RAUTITAN | E117: 12414931001 | G117: Противопожарная манжета 50 для РЕХ | H117: 1 | I117: шт | J117: 66.25 | K117: 78.175 | L117: 0 | M117: 66.25 | N117: 0 | O117: 78.18 | P117: 0
B118: RAUTITAN | E118: 12415031001 | G118: Противопожарная манжета 63 для РЕХ | H118: 1 | I118: шт | J118: 75.43 | K118: 89.0074 | L118: 0 | M118: 75.43 | N118: 0 | O118: 89.01 | P118: 0
B119: RAUTITAN
B120: RAUTITAN | G120: 1.1.2. Универсальные фитинги RAUTITAN для водоснабжения и отопления
B121: RAUTITAN | E121: 11397711002 | F121: =F129*3+F150*2+F151*2+F152*2+F158+F209*2+F219+F220+F221+F263 -> 20 | G121: Монтажная гильза 50 MX | H121: 25 | I121: шт | J121: 6.59 | K121: =J121*$B$2 -> 7.7762 | L121: =K121*F121 -> 155.524 | M121: =J121*(1-$E$5-$E$7)*(1-$E$9)*(1+$E$11) -> 6.59 | N121: =M121*F121 -> 131.8 | O121: =ROUND((M121*$B$2),2) -> 7.78 | P121: =O121*F121 -> 155.6
B122: RAUTITAN | E122: 11397811002 | F122: =F130*3+F156*2+F157*2+F158*2+F211*2+F221+F265 -> 24 | G122: Монтажная гильза 63 MX | H122: 25 | I122: шт | J122: 9.33 | K122: 11.0094 | L122: 264.2256 | M122: 9.33 | N122: 223.92 | O122: 11.01 | P122: 264.24
B123: RAUTITAN | C123: x | E123: 11600011001 | F123: =F159+F162+F169+F176*2+F178+F187*2+F349 -> 82 | G123: Монтажная гильза 16 PX | H123: 100 | I123: шт | J123: 0.61 | K123: 0.7198 | L123: 59.0236 | M123: 0.61 | N123: 50.02 | O123: 0.72 | P123: 59.04
B124: RAUTITAN | C124: x | E124: 11600021001 | F124: =F132*3+F150+F159*2+F161+F163+F165+F169*2+F171+F172+F176+F178+F180*2+F182+F187+F190*2+F224+F351 -> 83 | G124: Монтажная гильза 20 PX | H124: 100 | I124: шт | J124: 0.78 | K124: 0.9204 | L124: 76.3932 | M124: 0.78 | N124: 64.74 | O124: 0.92 | P124: 76.36
B125: RAUTITAN | C125: x | E125: 11600031001 | F125: =F151+F161*2+F171*2+F178+F180+F182+F190+F191*2+F224+F225+F309*2 -> 33 | G125: Монтажная гильза 25 PX | H125: 100 | I125: шт | J125: 1.03 | K125: 1.2154 | L125: 40.1082 | M125: 1.03 | N125: 33.99 | O125: 1.22 | P125: 40.26
B126: RAUTITAN | C126: x | E126: 11600041001 | F126: =F152+F156+F162*2+F163*2+F172*2+F182+F191+F219+F225+F226+F259+F310*2 -> 62 | G126: Монтажная гильза 32 PX | H126: 50 | I126: шт | J126: 1.98 | K126: 2.3364 | L126: 144.8568 | M126: 1.98 | N126: 122.76 | O126: 2.34 | P126: 145.08
B127: RAUTITAN | C127: x | E127: 11600051001 | F127: =F135*3+F157+F165*2+F216*2+F218+F220+F226+F311*2 -> 60 | G127: Монтажная гильза 40 PX | H127: 25 | I127: шт | J127: 3.64 | K127: 4.2952 | L127: 257.712 | M127: 3.64 | N127: 218.4 | O127: 4.3 | P127: 258
B128: RAUTITAN
B129: RAUTITAN | E129: 11371551001 | F129: 1 | G129: Тройник равнопроходный 50-50-50 MX | H129: 1 | I129: шт | J129: 38.92 | K129: =J129*$B$2 -> 45.9256 | L129: =K129*F129 -> 45.9256 | M129: =J129*(1-$E$5-$E$7)*(1-$E$9)*(1+$E$11) -> 38.92 | N129: =M129*F129 -> 38.92 | O129: =ROUND((M129*$B$2),2) -> 45.93 | P129: =O129*F129 -> 45.93
B130: RAUTITAN | E130: 11371651001 | F130: 1 | G130: Тройник равнопроходный 63-63-63 MX | H130: 1 | I130: шт | J130: 48.82 | K130: 57.6076 | L130: 57.6076 | M130: 48.82 | N130: 48.82 | O130: 57.61 | P130: 57.61
B131: RAUTITAN | C131: x | E131: 11600311001 | G131: Тройник равнопроходный 16-16-16 PX | H131: 10 | I131: шт | J131: 4.82 | K131: 5.6876 | L131: 0 | M131: 4.82 | N131: 0 | O131: 5.69 | P131: 0
B132: RAUTITAN | C132: x | E132: 11600321001 | F132: 2 | G132: Тройник равнопроходный 20-20-20 PX | H132: 10 | I132: шт | J132: 6.35 | K132: 7.493 | L132: 14.986 | M132: 6.35 | N132: 12.7 | O132: 7.49 | P132: 14.98
B133: RAUTITAN | C133: x | E133: 11600331001 | G133: Тройник равнопроходный 25-25-25 PX | H133: 10 | I133: шт | J133: 7.17 | K133: 8.4606 | L133: 0 | M133: 7.17 | N133: 0 | O133: 8.46 | P133: 0
B134: RAUTITAN | C134: x | E134: 11600341001 | G134: Тройник равнопроходный 32-32-32 PX | H134: 3 | I134: шт | J134: 14.54 | K134: 17.1572 | L134: 0 | M134: 14.54 | N134: 0 | O134: 17.16 | P134: 0
B135: RAUTITAN | C135: x | E135: 11600351001 | F135: 3 | G135: Тройник равнопроходный 40-40-40 PX | H135: 2 | I135: шт | J135: 28.5 | K135: 33.63 | L135: 100.89 | M135: 28.5 | N135: 85.5 | O135: 33.63 | P135: 100.89
B136: RAUTITAN
B137: RAUTITAN | E137: 13662751001 | G137: Тройник с повышенным сопротивлением на проходе 32-16-25 RX | H137: 1 | I137: шт | J137: 22.06 | K137: =J137*$B$2 -> 26.0308 | L137: =K137*F137 -> 0 | M137: =J137*(1-$E$5-$E$7)*(1-$E$9)*(1+$E$11) -> 22.06 | N137: =M137*F137 -> 0 | O137: =ROUND((M137*$B$2),2) -> 26.03 | P137: =O137*F137 -> 0
B138: RAUTITAN | E138: 13662761001 | G138: Тройник с повышенным сопротивлением на проходе 40-16-32 RX | H138: 1 | I138: шт | J138: 39.75 | K138: =J138*$B$2 -> 46.905 | L138: =K138*F138 -> 0 | M138: =J138*(1-$E$5-$E$7)*(1-$E$9)*(1+$E$11) -> 39.75 | N138: =M138*F138 -> 0 | O138: =ROUND((M138*$B$2),2) -> 46.91 | P138: =O138*F138 -> 0
B139: RAUTITAN | E139: 13662771001 | G139: Тройник с повышенным сопротивлением на проходе 40-20-32 RX | H139: 1 | I139: шт | J139: 38.95 | K139: =J139*$B$2 -> 45.961 | L139: =K139*F139 -> 0 | M139: =J139*(1-$E$5-$E$7)*(1-$E$9)*(1+$E$11) -> 38.95 | N139: =M139*F139 -> 0 | O139: =ROUND((M139*$B$2),2) -> 45.96 | P139: =O139*F139 -> 0
B140: RAUTITAN
B141: RAUTITAN | E141: 11313851001 | G141: Проточный настенный угольник 16/16-Rp 1/2 RX | H141: 5 | I141: шт | J141: 28.44 | K141: =J141*$B$2 -> 33.5592 | L141: =K141*F141 -> 0 | M141: =J141*(1-$E$5-$E$7)*(1-$E$9)*(1+$E$11) -> 28.44 | N141: =M141*F141 -> 0 | O141: =ROUND((M141*$B$2),2) -> 33.56 | P141: =O141*F141 -> 0
B142: RAUTITAN | E142: 11313951001 | G142: Проточный настенный угольник 20/20-Rp 1/2 RX | H142: 5 | I142: шт | J142: 29.63 | K142: =J142*$B$2 -> 34.9634 | L142: =K142*F142 -> 0 | M142: =J142*(1-$E$5-$E$7)*(1-$E$9)*(1+$E$11) -> 29.63 | N142: =M142*F142 -> 0 | O142: =ROUND((M142*$B$2),2) -> 34.96 | P142: =O142*F142 -> 0
B143: RAUTITAN | E143: 13662841001 | G143: Проточный настенный угольник 16/16-Rp 1/2 RX | H143: 5 | I143: шт | J143: 26.04 | K143: =J143*$B$2 -> 30.7272 | L143: =K143*F143 -> 0 | M143: =J143*(1-$E$5-$E$7)*(1-$E$9)*(1+$E$11) -> 26.04 | N143: =M143*F143 -> 0 | O143: =ROUND((M143*$B$2),2) -> 30.73 | P143: =O143*F143 -> 0
B144: RAUTITAN | E144: 13662851001 | G144: Проточный настенный угольник 20/20-Rp 1/2 RX | H144: 5 | I144: шт | J144: 27.52 | K144: =J144*$B$2 -> 32.4736 | L144: =K144*F144 -> 0 | M144: =J144*(1-$E$5-$E$7)*(1-$E$9)*(1+$E$11) -> 27.52 | N144: =M144*F144 -> 0 | O144: =ROUND((M144*$B$2),2) -> 32.47 | P144: =O144*F144 -> 0
B145: RAUTITAN
B146: RAUTITAN | E146: 13662791001 | G146: Тройник RAUTITAN RX с наружной резьбой 16-16-R 1/2 | H146: 4 | I146: шт | J146: 14.59 | K146: =J146*$B$2 -> 17.2162 | L146: =K146*F146 -> 0 | M146: =J146*(1-$E$5-$E$7)*(1-$E$9)*(1+$E$11) -> 14.59 | N146: =M146*F146 -> 0 | O146: =ROUND((M146*$B$2),2) -> 17.22 | P146: =O146*F146 -> 0
B147: RAUTITAN | E147: 13662801001 | G147: Тройник RAUTITAN RX с наружной резьбой 20-20-R 1/2 | H147: 4 | I147: шт | J147: 17.73 | K147: =J147*$B$2 -> 20.9214 | L147: =K147*F147 -> 0 | M147: =J147*(1-$E$5-$E$7)*(1-$E$9)*(1+$E$11) -> 17.73 | N147: =M147*F147 -> 0 | O147: =ROUND((M147*$B$2),2) -> 20.92 | P147: =O147*F147 -> 0
B148: RAUTITAN | E148: 13662811001 | G148: Тройник RAUTITAN RX с наружной резьбой 20-20-R 3/4 | H148: 4 | I148: шт | J148: 19.31 | K148: =J148*$B$2 -> 22.7858 | L148: =K148*F148 -> 0 | M148: =J148*(1-$E$5-$E$7)*(1-$E$9)*(1+$E$11) -> 19.31 | N148: =M148*F148 -> 0 | O148: =ROUND((M148*$B$2),2) -> 22.79 | P148: =O148*F148 -> 0
B149: RAUTITAN
B150: RAUTITAN | D150: 230348 | E150: 13660031001 | F150: 1 | G150: Тройник с уменьшенным боковым проходом 50-20-50 RX | H150: 1 | I150: шт | J150: 41.74 | K150: =J150*$B$2 -> 49.2532 | L150: =K150*F150 -> 49.2532 | M150: =J150*(1-$E$5-$E$7)*(1-$E$9)*(1+$E$11) -> 41.74 | N150: =M150*F150 -> 41.74 | O150: =ROUND((M150*$B$2),2) -> 49.25 | P150: =O150*F150 -> 49.25
B151: RAUTITAN | E151: 12303581001 | F151: 1 | G151: Тройник с уменьшенным боковым проходом 50-25-50 MX | H151: 1 | I151: шт | J151: 38.92 | K151: 45.9256 | L151: 45.9256 | M151: 38.92 | N151: 38.92 | O151: 45.93 | P151: 45.93
B152: RAUTITAN | E152: 11397921001 | F152: 1 | G152: Тройник с уменьшенным боковым проходом 50-32-50 MX | H152: 1 | I152: шт | J152: 38.92 | K152: 45.9256 | L152: 45.9256 | M152: 38.92 | N152: 38.92 | O152: 45.93 | P152: 45.93
B153: RAUTITAN | E153: 11370891001 | G153: Тройник с уменьшенным боковым проходом 50-40-50 MX | H153: 1 | I153: шт | J153: 38.92 | K153: 45.9256 | L153: 0 | M153: 38.92 | N153: 0 | O153: 45.93 | P153: 0
B154: RAUTITAN | E154: 12303281001 | G154: Тройник с уменьшенным боковым проходом 63-20-63 MX После реализации складского запаса выводится из программы поставок | H154: 1 | I154: шт | J154: 48.82 | K154: 57.6076 | L154: 0 | M154: 48.82 | N154: 0 | O154: 57.61 | P154: 0
B155: RAUTITAN | D155: 230338 | E155: 13660081001 | G155: Тройник с уменьшенным боковым проходом 63-25-63 RX | H155: 1 | I155: шт | J155: 52.68 | K155: 62.1624 | L155: 0 | M155: 52.68 | N155: 0 | O155: 62.16 | P155: 0
B156: RAUTITAN | E156: 11371751001 | F156: 1 | G156: Тройник с уменьшенным боковым проходом 63-32-63 MX | H156: 1 | I156: шт | J156: 48.82 | K156: 57.6076 | L156: 57.6076 | M156: 48.82 | N156: 48.82 | O156: 57.61 | P156: 57.61
B157: RAUTITAN | D157: 137074 | E157: 13660101001 | F157: 1 | G157: Тройник с уменьшенным боковым проходом 63-40-63 RX | H157: 1 | I157: шт | J157: 53.2 | K157: 62.776 | L157: 62.776 | M157: 53.2 | N157: 53.2 | O157: 62.78 | P157: 62.78
B158: RAUTITAN | D158: 137084 | E158: 13660111001 | F158: 1 | G158: Тройник с уменьшенным боковым проходом 63-50-63 RX | H158: 1 | I158: шт | J158: 94.97 | K158: 112.0646 | L158: 112.0646 | M158: 94.97 | N158: 94.97 | O158: 112.06 | P158: 112.06
B159: RAUTITAN | C159: x | E159: 11600611001 | F159: 2 | G159: Тройник с уменьшенным боковым проходом 20-16-20 PX | H159: 10 | I159: шт | J159: 6.35 | K159: 7.493 | L159: 14.986 | M159: 6.35 | N159: 12.7 | O159: 7.49 | P159: 14.98
B160: RAUTITAN | C160: x | E160: 11600621001 | G160: Тройник с уменьшенным боковым проходом 25-16-25 PX | H160: 10 | I160: шт | J160: 7.17 | K160: 8.4606 | L160: 0 | M160: 7.17 | N160: 0 | O160: 8.46 | P160: 0
B161: RAUTITAN | C161: x | E161: 11600631001 | F161: 2 | G161: Тройник с уменьшенным боковым проходом 25-20-25 PX | H161: 10 | I161: шт | J161: 7.17 | K161: 8.4606 | L161: 16.9212 | M161: 7.17 | N161: 14.34 | O161: 8.46 | P161: 16.92
B162: RAUTITAN | C162: x | E162: 11600641001 | F162: 1 | G162: Тройник с уменьшенным боковым проходом 32-16-32 PX | H162: 3 | I162: шт | J162: 14.54 | K162: 17.1572 | L162: 17.1572 | M162: 14.54 | N162: 14.54 | O162: 17.16 | P162: 17.16
B163: RAUTITAN | C163: x | E163: 11600651001 | F163: 3 | G163: Тройник с уменьшенным боковым проходом 32-20-32 PX | H163: 3 | I163: шт | J163: 14.54 | K163: 17.1572 | L163: 51.4716 | M163: 14.54 | N163: 43.62 | O163: 17.16 | P163: 51.48
B164: RAUTITAN | C164: x | E164: 11600661001 | G164: Тройник с уменьшенным боковым проходом 32-25-32 PX | H164: 3 | I164: шт | J164: 14.54 | K164: 17.1572 | L164: 0 | M164: 14.54 | N164: 0 | O164: 17.16 | P164: 0
B165: RAUTITAN | C165: x | E165: 11600671001 | F165: 8 | G165: Тройник с уменьшенным боковым проходом 40-20-40 PX | H165: 2 | I165: шт | J165: 28.5 | K165: 33.63 | L165: 269.04 | M165: 28.5 | N165: 228 | O165: 33.63 | P165: 269.04
B166: RAUTITAN | C166: x | E166: 11600681001 | G166: Тройник с уменьшенным боковым проходом 40-25-40 PX | H166: 2 | I166: шт | J166: 28.5 | K166: 33.63 | L166: 0 | M166: 28.5 | N166: 0 | O166: 33.63 | P166: 0
B167: RAUTITAN | C167: x | E167: 11600691001 | G167: Тройник с уменьшенным боковым проходом 40-32-40 PX | H167: 2 | I167: шт | J167: 28.5 | K167: 33.63 | L167: 0 | M167: 28.5 | N167: 0 | O167: 33.63 | P167: 0
B168: RAUTITAN
B169: RAUTITAN | C169: x | E169: 11600711001 | F169: 1 | G169: Тройник с уменьшенным торцевым проходом 20-20-16 PX | H169: 10 | I169: шт | J169: 6.35 | K169: =J169*$B$2 -> 7.493 | L169: =K169*F169 -> 7.493 | M169: =J169*(1-$E$5-$E$7)*(1-$E$9)*(1+$E$11) -> 6.35 | N169: =M169*F169 -> 6.35 | O169: =ROUND((M169*$B$2),2) -> 7.49 | P169: =O169*F169 -> 7.49
B170: RAUTITAN | C170: x | E170: 11600721001 | G170: Тройник с уменьшенным торцевым проходом 25-25-16 PX | H170: 10 | I170: шт | J170: 7.17 | K170: =J170*$B$2 -> 8.4606 | L170: =K170*F170 -> 0 | M170: =J170*(1-$E$5-$E$7)*(1-$E$9)*(1+$E$11) -> 7.17 | N170: =M170*F170 -> 0 | O170: =ROUND((M170*$B$2),2) -> 8.46 | P170: =O170*F170 -> 0
B171: RAUTITAN | C171: x | E171: 11600731001 | F171: 1 | G171: Тройник с уменьшенным торцевым проходом 25-25-20 PX | H171: 10 | I171: шт | J171: 7.17 | K171: =J171*$B$2 -> 8.4606 | L171: =K171*F171 -> 8.4606 | M171: =J171*(1-$E$5-$E$7)*(1-$E$9)*(1+$E$11) -> 7.17 | N171: =M171*F171 -> 7.17 | O171: =ROUND((M171*$B$2),2) -> 8.46 | P171: =O171*F171 -> 8.46
B172: RAUTITAN | C172: x | E172: 11600741001 | F172: 4 | G172: Тройник с уменьшенным торцевым проходом 32-32-20 PX | H172: 3 | I172: шт | J172: 14.54 | K172: =J172*$B$2 -> 17.1572 | L172: =K172*F172 -> 68.6288 | M172: =J172*(1-$E$5-$E$7)*(1-$E$9)*(1+$E$11) -> 14.54 | N172: =M172*F172 -> 58.16 | O172: =ROUND((M172*$B$2),2) -> 17.16 | P172: =O172*F172 -> 68.64
B173: RAUTITAN | C173: x | E173: 11600751001 | G173: Тройник с уменьшенным торцевым проходом 32-32-25 PX | H173: 3 | I173: шт | J173: 14.54 | K173: =J173*$B$2 -> 17.1572 | L173: =K173*F173 -> 0 | M173: =J173*(1-$E$5-$E$7)*(1-$E$9)*(1+$E$11) -> 14.54 | N173: =M173*F173 -> 0 | O173: =ROUND((M173*$B$2),2) -> 17.16 | P173: =O173*F173 -> 0
B174: RAUTITAN
B175: RAUTITAN | E175: 11371951001 | G175: Тройник с уменьшенным боковым и торцевым проходами 50-32-40 MX | H175: 1 | I175: шт | J175: 38.92 | K175: =J175*$B$2 -> 45.9256 | L175: =K175*F175 -> 0 | M175: =J175*(1-$E$5-$E$7)*(1-$E$9)*(1+$E$11) -> 38.92 | N175: =M175*F175 -> 0 | O175: =ROUND((M175*$B$2),2) -> 45.93 | P175: =O175*F175 -> 0
B176: RAUTITAN | C176: x | E176: 11600811001 | F176: 15 | G176: Тройник с уменьшенным боковым и торцевым проходами 20-16-16 PX | H176: 10 | I176: шт | J176: 4.82 | K176: 5.6876 | L176: 85.314 | M176: 4.82 | N176: 72.3 | O176: 5.69 | P176: 85.35
B177: RAUTITAN | C177: x | E177: 11600821001 | G177: Тройник с уменьшенным боковым и торцевым проходами 25-16-16 PX | H177: 10 | I177: шт | J177: 4.82 | K177: 5.6876 | L177: 0 | M177: 4.82 | N177: 0 | O177: 5.69 | P177: 0
B178: RAUTITAN | C178: x | E178: 11600831001 | F178: 3 | G178: Тройник с уменьшенным боковым и торцевым проходами 25-16-20 PX | H178: 10 | I178: шт | J178: 6.35 | K178: 7.493 | L178: 22.479 | M178: 6.35 | N178: 19.05 | O178: 7.49 | P178: 22.47
B179: RAUTITAN | C179: x | E179: 11600841001 | G179: Тройник с уменьшенным боковым и торцевым проходами 25-20-16 PX | H179: 10 | I179: шт | J179: 6.35 | K179: 7.493 | L179: 0 | M179: 6.35 | N179: 0 | O179: 7.49 | P179: 0
B180: RAUTITAN | C180: x | E180: 11600851001 | F180: 1 | G180: Тройник с уменьшенным боковым и торцевым проходами 25-20-20 PX | H180: 10 | I180: шт | J180: 6.35 | K180: 7.493 | L180: 7.493 | M180: 6.35 | N180: 6.35 | O180: 7.49 | P180: 7.49
B181: RAUTITAN | C181: x | E181: 11600861001 | G181: Тройник с уменьшенным боковым и торцевым проходами 32-20-20 PX | H181: 3 | I181: шт | J181: 14.54 | K181: 17.1572 | L181: 0 | M181: 14.54 | N181: 0 | O181: 17.16 | P181: 0
B182: RAUTITAN | C182: x | E182: 11600871001 | F182: 2 | G182: Тройник с уменьшенным боковым и торцевым проходами 32-20-25 PX | H182: 3 | I182: шт | J182: 14.54 | K182: 17.1572 | L182: 34.3144 | M182: 14.54 | N182: 29.08 | O182: 17.16 | P182: 34.32
B183: RAUTITAN | C183: x | E183: 11600891001 | G183: Тройник с уменьшенным боковым и торцевым проходами 32-25-20 PX | H183: 3 | I183: шт | J183: 14.54 | K183: 17.1572 | L183: 0 | M183: 14.54 | N183: 0 | O183: 17.16 | P183: 0
B184: RAUTITAN | C184: x | E184: 11600911001 | G184: Тройник с уменьшенным боковым и торцевым проходами 32-25-25 PX | H184: 3 | I184: шт | J184: 14.54 | K184: 17.1572 | L184: 0 | M184: 14.54 | N184: 0 | O184: 17.16 | P184: 0
B185: RAUTITAN | C185: x | E185: 11600921001 | G185: Тройник с уменьшенным боковым и торцевым проходами 40-32-32 PX | H185: 2 | I185: шт | J185: 28.5 | K185: 33.63 | L185: 0 | M185: 28.5 | N185: 0 | O185: 33.63 | P185: 0
B186: RAUTITAN
B187: RAUTITAN | C187: x | E187: 11601011001 | F187: 2 | G187: Тройник с увеличенным боковым проходом 16-20-16 PX | H187: 10 | I187: шт | J187: 4.82 | K187: =J187*$B$2 -> 5.6876 | L187: =K187*F187 -> 11.3752 | M187: =J187*(1-$E$5-$E$7)*(1-$E$9)*(1+$E$11) -> 4.82 | N187: =M187*F187 -> 9.64 | O187: =ROUND((M187*$B$2),2) -> 5.69 | P187: =O187*F187 -> 11.38
B188: RAUTITAN | C188: x | E188: 11601021001 | G188: Тройник с увеличенным боковым проходом 16-25-16 PX | H188: 10 | I188: шт | J188: 6.35 | K188: =J188*$B$2 -> 7.493 | L188: =K188*F188 -> 0 | M188: =J188*(1-$E$5-$E$7)*(1-$E$9)*(1+$E$11) -> 6.35 | N188: =M188*F188 -> 0 | O188: =ROUND((M188*$B$2),2) -> 7.49 | P188: =O188*F188 -> 0
B189: RAUTITAN | C189: x | E189: 11601031001 | G189: Тройник с увеличенным боковым проходом 20-25-16 PX | H189: 10 | I189: шт | J189: 6.35 | K189: =J189*$B$2 -> 7.493 | L189: =K189*F189 -> 0 | M189: =J189*(1-$E$5-$E$7)*(1-$E$9)*(1+$E$11) -> 6.35 | N189: =M189*F189 -> 0 | O189: =ROUND((M189*$B$2),2) -> 7.49 | P189: =O189*F189 -> 0
B190: RAUTITAN | C190: x | E190: 11601041001 | F190: 3 | G190: Тройник с увеличенным боковым проходом 20-25-20 PX | H190: 10 | I190: шт | J190: 6.35 | K190: =J190*$B$2 -> 7.493 | L190: =K190*F190 -> 22.479 | M190: =J190*(1-$E$5-$E$7)*(1-$E$9)*(1+$E$11) -> 6.35 | N190: =M190*F190 -> 19.05 | O190: =ROUND((M190*$B$2),2) -> 7.49 | P190: =O190*F190 -> 22.47
B191: RAUTITAN | C191: x | E191: 11601061001 | F191: 2 | G191: Тройник с увеличенным боковым проходом 25-32-25 PX | H191: 3 | I191: шт | J191: 14.54 | K191: =J191*$B$2 -> 17.1572 | L191: =K191*F191 -> 34.3144 | M191: =J191*(1-$E$5-$E$7)*(1-$E$9)*(1+$E$11) -> 14.54 | N191: =M191*F191 -> 29.08 | O191: =ROUND((M191*$B$2),2) -> 17.16 | P191: =O191*F191 -> 34.32
B192: RAUTITAN
A193: V | B193: RAUTITAN | E193: 11388411402 | G193: Тройник настенный с внутренней резьбой 16-Rp1/2-16 (MX) После реализации складского запаса заменяется на 13660161001 | H193: 10 | I193: шт | J193: 9.34 | K193: =J193*$B$2 -> 11.0212 | L193: =K193*F193 -> 0 | M193: =J193*(1-$E$5-$E$7)*(1-$E$9)*(1+$E$11) -> 9.34 | N193: =M193*F193 -> 0 | O193: =ROUND((M193*$B$2),2) -> 11.02 | P193: =O193*F193 -> 0
A194: V | B194: RAUTITAN | D194: 138841 | E194: 13660161001 | G194: Тройник настенный с внутренней резьбой 16-Rp1/2-16 (RX) | H194: 10 | I194: шт | J194: 9.34 | K194: =J194*$B$2 -> 11.0212 | L194: =K194*F194 -> 0 | M194: =J194*(1-$E$5-$E$7)*(1-$E$9)*(1+$E$11) -> 9.34 | N194: =M194*F194 -> 0 | O194: =ROUND((M194*$B$2),2) -> 11.02 | P194: =O194*F194 -> 0
A195: N | B195: RAUTITAN | D195: 131388 | E195: 13660171001 | G195: Тройник настенный с внутренней резьбой 20-Rp1/2-16 (RX) | H195: 10 | I195: шт | J195: 16.87 | K195: =J195*$B$2 -> 19.9066 | L195: =K195*F195 -> 0 | M195: =J195*(1-$E$5-$E$7)*(1-$E$9)*(1+$E$11) -> 16.87 | N195: =M195*F195 -> 0 | O195: =ROUND((M195*$B$2),2) -> 19.91 | P195: =O195*F195 -> 0
A196: V | B196: RAUTITAN | E196: 11388511402 | G196: Тройник настенный с внутренней резьбой 20-Rp1/2-20 | H196: 10 | I196: шт | J196: 9.74 | K196: =J196*$B$2 -> 11.4932 | L196: =K196*F196 -> 0 | M196: =J196*(1-$E$5-$E$7)*(1-$E$9)*(1+$E$11) -> 9.74 | N196: =M196*F196 -> 0 | O196: =ROUND((M196*$B$2),2) -> 11.49 | P196: =O196*F196 -> 0
B197: RAUTITAN
B198: RAUTITAN | E198: 12582061002 | G198: Тройник с внутр. резьбой на боков. проходе 25-Rp 3/4-25 | H198: 10 | I198: шт | J198: 10.03 | K198: =J198*$B$2 -> 11.8354 | L198: =K198*F198 -> 0 | M198: =J198*(1-$E$5-$E$7)*(1-$E$9)*(1+$E$11) -> 10.03 | N198: =M198*F198 -> 0 | O198: =ROUND((M198*$B$2),2) -> 11.84 | P198: =O198*F198 -> 0
A199: N | B199: RAUTITAN | D199: 139011 | E199: 13660241001 | G199: Тройник с внутр. резьбой на боков. проходе 32-Rp 3/4-25 (RX) | H199: 3 | I199: шт | J199: 23.73 | K199: 28.0014 | L199: 0 | M199: 23.73 | N199: 0 | O199: 28 | P199: 0
B200: RAUTITAN | E200: 11389911002 | G200: Тройник с внутр. резьбой на боков. проходе 32-Rp 3/4-32 | H200: 3 | I200: шт | J200: 19.72 | K200: 23.2696 | L200: 0 | M200: 19.72 | N200: 0 | O200: 23.27 | P200: 0
B201: RAUTITAN | E201: 11390011002 | G201: Тройник с внутр. резьбой на боков. проходе 32-Rp 1-25. После реализации складского запаса выводится из программы поставок | H201: 3 | I201: шт | J201: 19.72 | K201: 23.2696 | L201: 0 | M201: 19.72 | N201: 0 | O201: 23.27 | P201: 0
B202: RAUTITAN | E202: 11389811002 | G202: Тройник с внутр. резьбой на боков. проходе 32-Rp 1-32 После реализации складского запаса заменяется на 13660261001 | H202: 3 | I202: шт | J202: 19.72 | K202: 23.2696 | L202: 0 | M202: 19.72 | N202: 0 | O202: 23.27 | P202: 0
B203: RAUTITAN | D203: 11389811002 | E203: 13660261001 | G203: Тройник с внутр. резьбой на боков. проходе 32-Rp 1-32 (RX) | H203: 3 | I203: шт | J203: 26.77 | K203: =J203*$B$2 -> 31.5886 | L203: =K203*F203 -> 0 | M203: =J203*(1-$E$5-$E$7)*(1-$E$9)*(1+$E$11) -> 26.77 | N203: =M203*F203 -> 0 | O203: =ROUND((M203*$B$2),2) -> 31.59 | P203: =O203*F203 -> 0
B204: RAUTITAN | D204: 139802 | E204: 13660281001 | G204: Тройник с внутр. резьбой на боков. проходе 40-Rp 1-40 (RX). | H204: 1 | I204: шт | J204: 39.94 | K204: 47.1292 | L204: 0 | M204: 39.94 | N204: 0 | O204: 47.13 | P204: 0
B205: RAUTITAN | D205: 139812 | E205: 13660311001 | G205: Тройник с внутр. резьбой на боков. проходе 50-Rp 1-50 (RX). | H205: 1 | I205: шт | J205: 54.49 | K205: 64.2982 | L205: 0 | M205: 54.49 | N205: 0 | O205: 64.3 | P205: 0
B206: RAUTITAN
... 3386 more rows

Sheet Upload
A1: Загрузка заказов в клиентский портал
A3: 1. Скопировать из таблицы заказов колонки B, C, D в новую таблицу как показано на образце.
A20: 2. Выбрать меню файл / Сохранить как… / и формат "CSV c разделителями запятыми"
A22: 3. Загрузить страницу REHAU.ru и загрузить Клиентский портал REHAU
A24: 4. Выбрать меню Система заказов / Загрузка заказа / Формат CSV и нажать кнопку "Далее"
A26: 5. Нажать конпку "Обзор..." и выбрать сохраненный Вами файл
A28: 6. Заказ загружен к клиентский портал.
A52: Далее следуйте стандартному пути оформления заказа в Клиентском портале.
